Workbook

Sheet Sheet1
B2: Pooling performance was tested by creating 2D noise textures with various number of task counts.
B3: Each task set is performed 50 times, with spending 1/5 of entire test session on warming up.
B5: Machine information:
B6: Processor | D6: Intel i7 6700K @ 4.5 GHz, 4 Cores 8 Threads
B7: RAM | D7: DDR4 32 GB @ 2400 MHz

Sheet Sheet3
B1: 1 | C1: 2 | D1: 3 | E1: 4 | F1: 6 | G1: 8 | H1: 12 | I1: 16 | J1: 24 | K1: 32 | L1: 48 | M1: 64 | N1: 96 | O1: 128 | P1: 192 | Q1: 256 | R1: 384 | S1: 512 | T1: 768 | U1: 1024 | V1: Column1
B2: 251 | C2: 1015 | D2: 936 | E2: 538 | F2: 554 | G2: 550 | H2: 406 | I2: 412 | J2: 344 | K2: 360 | L2: 326 | M2: 236 | N2: 296 | O2: 210 | P2: 224 | Q2: 223 | R2: 235 | S2: 231 | T2: 210 | U2: 208
B3: 960 | C3: 982 | D3: 939 | E3: 530 | F3: 530 | G3: 399 | H3: 424 | I3: 432 | J3: 326 | K3: 338 | L3: 245 | M3: 240 | N3: 269 | O3: 193 | P3: 219 | Q3: 247 | R3: 228 | S3: 244 | T3: 203 | U3: 237
B4: 949 | C4: 969 | D4: 962 | E4: 535 | F4: 511 | G4: 388 | H4: 445 | I4: 403 | J4: 324 | K4: 334 | L4: 239 | M4: 234 | N4: 250 | O4: 204 | P4: 188 | Q4: 238 | R4: 243 | S4: 234 | T4: 212 | U4: 221
B5: 953 | C5: 951 | D5: 1000 | E5: 547 | F5: 535 | G5: 676 | H5: 407 | I5: 414 | J5: 349 | K5: 331 | L5: 240 | M5: 248 | N5: 239 | O5: 218 | P5: 217 | Q5: 237 | R5: 255 | S5: 246 | T5: 222 | U5: 204
B6: 998 | C6: 952 | D6: 960 | E6: 547 | F6: 527 | G6: 405 | H6: 411 | I6: 404 | J6: 355 | K6: 329 | L6: 253 | M6: 239 | N6: 239 | O6: 216 | P6: 230 | Q6: 230 | R6: 261 | S6: 233 | T6: 212 | U6: 206
B7: 968 | C7: 956 | D7: 958 | E7: 506 | F7: 529 | G7: 407 | H7: 422 | I7: 411 | J7: 330 | K7: 326 | L7: 240 | M7: 241 | N7: 247 | O7: 237 | P7: 215 | Q7: 243 | R7: 234 | S7: 247 | T7: 241 | U7: 231
B8: 955 | C8: 994 | D8: 988 | E8: 547 | F8: 524 | G8: 419 | H8: 412 | I8: 406 | J8: 325 | K8: 327 | L8: 243 | M8: 241 | N8: 245 | O8: 209 | P8: 190 | Q8: 237 | R8: 236 | S8: 240 | T8: 209 | U8: 213
B9: 943 | C9: 930 | D9: 946 | E9: 561 | F9: 589 | G9: 407 | H9: 407 | I9: 421 | J9: 333 | K9: 328 | L9: 239 | M9: 239 | N9: 349 | O9: 248 | P9: 211 | Q9: 226 | R9: 237 | S9: 254 | T9: 212 | U9: 208
B10: 963 | C10: 943 | D10: 943 | E10: 544 | F10: 531 | G10: 434 | H10: 416 | I10: 446 | J10: 324 | K10: 347 | L10: 257 | M10: 240 | N10: 241 | O10: 220 | P10: 202 | Q10: 238 | R10: 255 | S10: 264 | T10: 226 | U10: 226
B11: 971 | C11: 947 | D11: 1003 | E11: 534 | F11: 519 | G11: 427 | H11: 410 | I11: 413 | J11: 334 | K11: 323 | L11: 241 | M11: 235 | N11: 243 | O11: 228 | P11: 203 | Q11: 230 | R11: 243 | S11: 256 | T11: 199 | U11: 208
B12: 962 | C12: 931 | D12: 947 | E12: 551 | F12: 527 | G12: 408 | H12: 409 | I12: 406 | J12: 330 | K12: 327 | L12: 248 | M12: 243 | N12: 242 | O12: 224 | P12: 194 | Q12: 237 | R12: 238 | S12: 238 | T12: 225 | U12: 219
B13: 950 | C13: 952 | D13: 534 | E13: 540 | F13: 545 | G13: 391 | H13: 402 | I13: 331 | J13: 327 | K13: 321 | L13: 232 | M13: 239 | N13: 219 | O13: 214 | P13: 220 | Q13: 232 | R13: 241 | S13: 215 | T13: 204 | U13: 228
B14: 950 | C14: 1008 | D14: 518 | E14: 518 | F14: 525 | G14: 413 | H14: 416 | I14: 335 | J14: 328 | K14: 323 | L14: 238 | M14: 258 | N14: 192 | O14: 206 | P14: 288 | Q14: 231 | R14: 253 | S14: 220 | T14: 208 | U14: 216
B15: 934 | C15: 959 | D15: 518 | E15: 593 | F15: 515 | G15: 394 | H15: 418 | I15: 329 | J15: 338 | K15: 330 | L15: 244 | M15: 229 | N15: 215 | O15: 209 | P15: 200 | Q15: 235 | R15: 242 | S15: 224 | T15: 218 | U15: 212
B16: 938 | C16: 953 | D16: 535 | E16: 588 | F16: 508 | G16: 396 | H16: 415 | I16: 328 | J16: 340 | K16: 325 | L16: 234 | M16: 236 | N16: 219 | O16: 210 | P16: 208 | Q16: 249 | R16: 241 | S16: 221 | T16: 213 | U16: 225
B17: 1014 | C17: 926 | D17: 530 | E17: 563 | F17: 542 | G17: 422 | H17: 448 | I17: 327 | J17: 326 | K17: 332 | L17: 245 | M17: 242 | N17: 207 | O17: 225 | P17: 230 | Q17: 230 | R17: 234 | S17: 229 | T17: 232 | U17: 212
B18: 940 | C18: 943 | D18: 560 | E18: 529 | F18: 518 | G18: 410 | H18: 402 | I18: 332 | J18: 331 | K18: 348 | L18: 239 | M18: 250 | N18: 221 | O18: 207 | P18: 209 | Q18: 232 | R18: 246 | S18: 209 | T18: 247 | U18: 208
B19: 975 | C19: 975 | D19: 579 | E19: 586 | F19: 594 | G19: 416 | H19: 409 | I19: 336 | J19: 329 | K19: 336 | L19: 253 | M19: 253 | N19: 191 | O19: 189 | P19: 199 | Q19: 234 | R19: 242 | S19: 207 | T19: 228 | U19: 212
B20: 938 | C20: 958 | D20: 532 | E20: 519 | F20: 544 | G20: 418 | H20: 402 | I20: 328 | J20: 329 | K20: 337 | L20: 257 | M20: 259 | N20: 223 | O20: 202 | P20: 219 | Q20: 231 | R20: 238 | S20: 204 | T20: 221 | U20: 209
B21: 963 | C21: 922 | D21: 515 | E21: 530 | F21: 532 | G21: 402 | H21: 407 | I21: 327 | J21: 333 | K21: 328 | L21: 243 | M21: 256 | N21: 214 | O21: 189 | P21: 207 | Q21: 234 | R21: 238 | S21: 233 | T21: 212 | U21: 232
B22: 1015 | C22: 936 | D22: 538 | E22: 554 | F22: 550 | G22: 406 | H22: 412 | I22: 344 | J22: 360 | K22: 326 | L22: 236 | M22: 296 | N22: 210 | O22: 224 | P22: 223 | Q22: 235 | R22: 231 | S22: 210 | T22: 208 | U22: 213
B23: 982 | C23: 939 | D23: 530 | E23: 530 | F23: 399 | G23: 424 | H23: 432 | I23: 326 | J23: 338 | K23: 245 | L23: 240 | M23: 269 | N23: 193 | O23: 219 | P23: 247 | Q23: 228 | R23: 244 | S23: 203 | T23: 237 | U23: 227
B24: 969 | C24: 962 | D24: 535 | E24: 511 | F24: 388 | G24: 445 | H24: 403 | I24: 324 | J24: 334 | K24: 239 | L24: 234 | M24: 250 | N24: 204 | O24: 188 | P24: 238 | Q24: 243 | R24: 234 | S24: 212 | T24: 221 | U24: 233
B25: 951 | C25: 1000 | D25: 547 | E25: 535 | F25: 676 | G25: 407 | H25: 414 | I25: 349 | J25: 331 | K25: 240 | L25: 248 | M25: 239 | N25: 218 | O25: 217 | P25: 237 | Q25: 255 | R25: 246 | S25: 222 | T25: 204 | U25: 235
B26: 952 | C26: 960 | D26: 547 | E26: 527 | F26: 405 | G26: 411 | H26: 404 | I26: 355 | J26: 329 | K26: 253 | L26: 239 | M26: 239 | N26: 216 | O26: 230 | P26: 230 | Q26: 261 | R26: 233 | S26: 212 | T26: 206 | U26: 221
B27: 956 | C27: 958 | D27: 506 | E27: 529 | F27: 407 | G27: 422 | H27: 411 | I27: 330 | J27: 326 | K27: 240 | L27: 241 | M27: 247 | N27: 237 | O27: 215 | P27: 243 | Q27: 234 | R27: 247 | S27: 241 | T27: 231 | U27: 235
B28: 994 | C28: 988 | D28: 547 | E28: 524 | F28: 419 | G28: 412 | H28: 406 | I28: 325 | J28: 327 | K28: 243 | L28: 241 | M28: 245 | N28: 209 | O28: 190 | P28: 237 | Q28: 236 | R28: 240 | S28: 209 | T28: 213 | U28: 215
B29: 930 | C29: 946 | D29: 561 | E29: 589 | F29: 407 | G29: 407 | H29: 421 | I29: 333 | J29: 328 | K29: 239 | L29: 239 | M29: 349 | N29: 248 | O29: 211 | P29: 226 | Q29: 237 | R29: 254 | S29: 212 | T29: 208 | U29: 210
B30: 943 | C30: 943 | D30: 544 | E30: 531 | F30: 434 | G30: 416 | H30: 446 | I30: 324 | J30: 347 | K30: 257 | L30: 240 | M30: 241 | N30: 220 | O30: 202 | P30: 238 | Q30: 255 | R30: 264 | S30: 226 | T30: 226 | U30: 219
B31: 947 | C31: 1003 | D31: 534 | E31: 519 | F31: 427 | G31: 410 | H31: 413 | I31: 334 | J31: 323 | K31: 241 | L31: 235 | M31: 243 | N31: 228 | O31: 203 | P31: 230 | Q31: 243 | R31: 256 | S31: 199 | T31: 208 | U31: 218
B32: 931 | C32: 947 | D32: 551 | E32: 527 | F32: 408 | G32: 409 | H32: 406 | I32: 330 | J32: 327 | K32: 248 | L32: 243 | M32: 242 | N32: 224 | O32: 194 | P32: 237 | Q32: 238 | R32: 238 | S32: 225 | T32: 219 | U32: 228
B33: 952 | C33: 534 | D33: 540 | E33: 545 | F33: 391 | G33: 402 | H33: 331 | I33: 327 | J33: 321 | K33: 232 | L33: 239 | M33: 219 | N33: 214 | O33: 220 | P33: 232 | Q33: 241 | R33: 215 | S33: 204 | T33: 228 | U33: 223
B34: 1008 | C34: 518 | D34: 518 | E34: 525 | F34: 413 | G34: 416 | H34: 335 | I34: 328 | J34: 323 | K34: 238 | L34: 258 | M34: 192 | N34: 206 | O34: 288 | P34: 231 | Q34: 253 | R34: 220 | S34: 208 | T34: 216 | U34: 215
B35: 959 | C35: 518 | D35: 593 | E35: 515 | F35: 394 | G35: 418 | H35: 329 | I35: 338 | J35: 330 | K35: 244 | L35: 229 | M35: 215 | N35: 209 | O35: 200 | P35: 235 | Q35: 242 | R35: 224 | S35: 218 | T35: 212 | U35: 226
B36: 953 | C36: 535 | D36: 588 | E36: 508 | F36: 396 | G36: 415 | H36: 328 | I36: 340 | J36: 325 | K36: 234 | L36: 236 | M36: 219 | N36: 210 | O36: 208 | P36: 249 | Q36: 241 | R36: 221 | S36: 213 | T36: 225 | U36: 226
B37: 926 | C37: 530 | D37: 563 | E37: 542 | F37: 422 | G37: 448 | H37: 327 | I37: 326 | J37: 332 | K37: 245 | L37: 242 | M37: 207 | N37: 225 | O37: 230 | P37: 230 | Q37: 234 | R37: 229 | S37: 232 | T37: 212 | U37: 229
B38: 943 | C38: 560 | D38: 529 | E38: 518 | F38: 410 | G38: 402 | H38: 332 | I38: 331 | J38: 348 | K38: 239 | L38: 250 | M38: 221 | N38: 207 | O38: 209 | P38: 232 | Q38: 246 | R38: 209 | S38: 247 | T38: 208 | U38: 237
B39: 975 | C39: 579 | D39: 586 | E39: 594 | F39: 416 | G39: 409 | H39: 336 | I39: 329 | J39: 336 | K39: 253 | L39: 253 | M39: 191 | N39: 189 | O39: 199 | P39: 234 | Q39: 242 | R39: 207 | S39: 228 | T39: 212 | U39: 224
B40: 958 | C40: 532 | D40: 519 | E40: 544 | F40: 418 | G40: 402 | H40: 328 | I40: 329 | J40: 337 | K40: 257 | L40: 259 | M40: 223 | N40: 202 | O40: 219 | P40: 231 | Q40: 238 | R40: 204 | S40: 221 | T40: 209 | U40: 211
B41: 922 | C41: 515 | D41: 530 | E41: 532 | F41: 402 | G41: 407 | H41: 327 | I41: 333 | J41: 328 | K41: 243 | L41: 256 | M41: 214 | N41: 189 | O41: 207 | P41: 234 | Q41: 238 | R41: 233 | S41: 212 | T41: 232 | U41: 210
B42: 936 | C42: 538 | D42: 554 | E42: 550 | F42: 406 | G42: 412 | H42: 344 | I42: 360 | J42: 326 | K42: 236 | L42: 296 | M42: 210 | N42: 224 | O42: 223 | P42: 235 | Q42: 231 | R42: 210 | S42: 208 | T42: 213 | U42: 229
B43: 939 | C43: 530 | D43: 530 | E43: 399 | F43: 424 | G43: 432 | H43: 326 | I43: 338 | J43: 245 | K43: 240 | L43: 269 | M43: 193 | N43: 219 | O43: 247 | P43: 228 | Q43: 244 | R43: 203 | S43: 237 | T43: 227 | U43: 210
B44: 962 | C44: 535 | D44: 511 | E44: 388 | F44: 445 | G44: 403 | H44: 324 | I44: 334 | J44: 239 | K44: 234 | L44: 250 | M44: 204 | N44: 188 | O44: 238 | P44: 243 | Q44: 234 | R44: 212 | S44: 221 | T44: 233 | U44: 217
B45: 1000 | C45: 547 | D45: 535 | E45: 676 | F45: 407 | G45: 414 | H45: 349 | I45: 331 | J45: 240 | K45: 248 | L45: 239 | M45: 218 | N45: 217 | O45: 237 | P45: 255 | Q45: 246 | R45: 222 | S45: 204 | T45: 235 | U45: 228
B46: 960 | C46: 547 | D46: 527 | E46: 405 | F46: 411 | G46: 404 | H46: 355 | I46: 329 | J46: 253 | K46: 239 | L46: 239 | M46: 216 | N46: 230 | O46: 230 | P46: 261 | Q46: 233 | R46: 212 | S46: 206 | T46: 221 | U46: 218
B47: 958 | C47: 506 | D47: 529 | E47: 407 | F47: 422 | G47: 411 | H47: 330 | I47: 326 | J47: 240 | K47: 241 | L47: 247 | M47: 237 | N47: 215 | O47: 243 | P47: 234 | Q47: 247 | R47: 241 | S47: 231 | T47: 235 | U47: 225
B48: 988 | C48: 547 | D48: 524 | E48: 419 | F48: 412 | G48: 406 | H48: 325 | I48: 327 | J48: 243 | K48: 241 | L48: 245 | M48: 209 | N48: 190 | O48: 237 | P48: 236 | Q48: 240 | R48: 209 | S48: 213 | T48: 215 | U48: 232
B49: 946 | C49: 561 | D49: 589 | E49: 407 | F49: 407 | G49: 421 | H49: 333 | I49: 328 | J49: 239 | K49: 239 | L49: 349 | M49: 248 | N49: 211 | O49: 226 | P49: 237 | Q49: 254 | R49: 212 | S49: 208 | T49: 210 | U49: 229
B50: 943 | C50: 544 | D50: 531 | E50: 434 | F50: 416 | G50: 446 | H50: 324 | I50: 347 | J50: 257 | K50: 240 | L50: 241 | M50: 220 | N50: 202 | O50: 238 | P50: 255 | Q50: 264 | R50: 226 | S50: 226 | T50: 219 | U50: 227
B51: 1003 | C51: 534 | D51: 519 | E51: 427 | F51: 410 | G51: 413 | H51: 334 | I51: 323 | J51: 241 | K51: 235 | L51: 243 | M51: 228 | N51: 203 | O51: 230 | P51: 243 | Q51: 256 | R51: 199 | S51: 208 | T51: 218 | U51: 214
A54: MIN | B54: =MIN(Table3[1]) -> 251 | C54: =MIN(Table3[2]) -> 506 | D54: =MIN(Table3[3]) -> 506 | E54: =MIN(Table3[4]) -> 388 | F54: =MIN(Table3[6]) -> 388 | G54: =MIN(Table3[8]) -> 388 | H54: =MIN(Table3[12]) -> 324 | I54: =MIN(Table3[16]) -> 323 | J54: =MIN(Table3[24]) -> 239 | K54: =MIN(Table3[32]) -> 232 | L54: =MIN(Table3[48]) -> 229 | M54: =MIN(Table3[64]) -> 191 | N54: =MIN(Table3[96]) -> 188 | O54: =MIN(Table3[128]) -> 188 | P54: =MIN(Table3[192]) -> 188 | Q54: =MIN(Table3[256]) -> 223 | R54: =MIN(Table3[384]) -> 199 | S54: =MIN(Table3[512]) -> 199 | T54: =MIN(Table3[768]) -> 199 | U54: =MIN(Table3[1024]) -> 204
A55: AVG | B55: =AVERAGE(Table3[1]) -> 945.52 | C55: =AVERAGE(Table3[2]) -> 799.16 | D55: =AVERAGE(Table3[3]) -> 633.16 | E55: =AVERAGE(Table3[4]) -> 522.34 | F55: =AVERAGE(Table3[6]) -> 468.82 | G55: =AVERAGE(Table3[8]) -> 420.64 | H55: =AVERAGE(Table3[12]) -> 383.46 | I55: =AVERAGE(Table3[16]) -> 350.78 | J55: =AVERAGE(Table3[24]) -> 316.56 | K55: =AVERAGE(Table3[32]) -> 279.98 | L55: =AVERAGE(Table3[48]) -> 248.64 | M55: =AVERAGE(Table3[64]) -> 236.04 | N55: =AVERAGE(Table3[96]) -> 222.36 | O55: =AVERAGE(Table3[128]) -> 217.6 | P55: =AVERAGE(Table3[192]) -> 227.88 | Q55: =AVERAGE(Table3[256]) -> 239.66 | R55: =AVERAGE(Table3[384]) -> 232.7 | S55: =AVERAGE(Table3[512]) -> 223.3 | T55: =AVERAGE(Table3[768]) -> 218.3 | U55: =AVERAGE(Table3[1024]) -> 220.38
A56: MAX | B56: =MAX(Table3[1]) -> 1015 | C56: =MAX(Table3[2]) -> 1015 | D56: =MAX(Table3[3]) -> 1003 | E56: =MAX(Table3[4]) -> 676 | F56: =MAX(Table3[6]) -> 676 | G56: =MAX(Table3[8]) -> 676 | H56: =MAX(Table3[12]) -> 448 | I56: =MAX(Table3[16]) -> 446 | J56: =MAX(Table3[24]) -> 360 | K56: =MAX(Table3[32]) -> 360 | L56: =MAX(Table3[48]) -> 349 | M56: =MAX(Table3[64]) -> 349 | N56: =MAX(Table3[96]) -> 349 | O56: =MAX(Table3[128]) -> 288 | P56: =MAX(Table3[192]) -> 288 | Q56: =MAX(Table3[256]) -> 264 | R56: =MAX(Table3[384]) -> 264 | S56: =MAX(Table3[512]) -> 264 | T56: =MAX(Table3[768]) -> 247 | U56: =MAX(Table3[1024]) -> 237
A57: STDERR | B57: =STDEV(Table3[1])/SQRT(COUNT(Table3[1])) -> 14.54202187 | C57: =STDEV(Table3[2])/SQRT(COUNT(Table3[2])) -> 29.44619944 | D57: =STDEV(Table3[3])/SQRT(COUNT(Table3[3])) -> 25.15399688 | E57: =STDEV(Table3[4])/SQRT(COUNT(Table3[4])) -> 8.065275025 | F57: =STDEV(Table3[6])/SQRT(COUNT(Table3[6])) -> 9.97256195 | G57: =STDEV(Table3[8])/SQRT(COUNT(Table3[8])) -> 6.156712613 | H57: =STDEV(Table3[12])/SQRT(COUNT(Table3[12])) -> 5.91554231 | I57: =STDEV(Table3[16])/SQRT(COUNT(Table3[16])) -> 5.075132651 | J57: =STDEV(Table3[24])/SQRT(COUNT(Table3[24])) -> 4.996910066 | K57: =STDEV(Table3[32])/SQRT(COUNT(Table3[32])) -> 6.443569172 | L57: =STDEV(Table3[48])/SQRT(COUNT(Table3[48])) -> 3.022738318 | M57: =STDEV(Table3[64])/SQRT(COUNT(Table3[64])) -> 3.638788765 | N57: =STDEV(Table3[96])/SQRT(COUNT(Table3[96])) -> 3.983512961 | O57: =STDEV(Table3[128])/SQRT(COUNT(Table3[128])) -> 2.646368324 | P57: =STDEV(Table3[192])/SQRT(COUNT(Table3[192])) -> 2.685203599 | Q57: =STDEV(Table3[256])/SQRT(COUNT(Table3[256])) -> 1.283684111 | R57: =STDEV(Table3[384])/SQRT(COUNT(Table3[384])) -> 2.301596606 | S57: =STDEV(Table3[512])/SQRT(COUNT(Table3[512])) -> 2.245766993 | T57: =STDEV(Table3[768])/SQRT(COUNT(Table3[768])) -> 1.551102307 | U57: =STDEV(Table3[1024])/SQRT(COUNT(Table3[1024])) -> 1.318282742

Sheet Sheet4
A1: 1 | B1: 6192 | C1: 5946 | D1: 5904
A2: 2 | B2: 49716 | C2: 47941 | D2: 48488
A3: 3 | B3: 27584 | C3: 26457 | D3: 26436
A4: 4 | B4: 18820 | C4: 20123 | D4: 19844
A5: 6 | B5: 14924 | C5: 16125 | D5: 16225
A6: 8 | B6: 11166 | C6: 12076 | D6: 12110
A7: 12 | B7: 9228 | C7: 10156 | D7: 9976
A8: 16 | B8: 10924 | C8: 11750 | D8: 11635
A9: 24 | B9: 10055 | C9: 10837 | D9: 10718
A10: 32 | B10: 10192 | C10: 11059 | D10: 10906
A11: 48 | B11: 10000 | C11: 10795 | D11: 10945
A12: 64 | B12: 9710 | C12: 10501 | D12: 10473
A13: 96 | B13: 9836 | C13: 10623 | D13: 10699
A14: 128 | B14: 9836 | C14: 10610 | D14: 10614
A15: 192 | B15: 9918 | C15: 10492 | D15: 10632
A16: 256 | B16: 10170 | C16: 10977 | D16: 10907
A17: 384 | B17: 10274 | C17: 11040 | D17: 11117
A18: 512 | B18: 10854 | C18: 11479 | D18: 11509
A19: 768 | B19: 11203 | C19: 11968 | D19: 11818
A20: 1024 | B20: 12156 | C20: 12534 | D20: 12859
A21: 1536 | B21: 12806 | C21: 13391 | D21: 13512
A22: 2048 | B22: 14065 | C22: 14837 | D22: 15026
A23: 3072 | B23: 16097 | C23: 16634 | D23: 16562
A24: 4096 | B24: 19128 | C24: 19899 | D24: 20113
A25: 6144 | B25: 22782 | C25: 23393 | D25: 23836
A26: 8192 | B26: 30689 | C26: 31281 | D26: 32029

Sheet Sheet4 (2)
A1: 1 | B1: 17580 | C1: 17694 | G1: 7080 | H1: 1
A2: 2 | B2: 51209 | C2: 49938 | G2: 20018 | H2: 2
A3: 4 | B3: 27608 | C3: 27117 | G3: 11306 | H3: 3
A4: 8 | B4: 16400 | C4: 16651 | G4: 8361 | H4: 4
A5: 9 | B5: 9797 | C5: 10065 | G5: 6812 | H5: 5
A6: 10 | B6: 13992 | C6: 14114 | G6: 5901 | H6: 6
A7: 11 | B7: 13304 | C7: 13364 | G7: 5211 | H7: 7
A8: 12 | B8: 12574 | C8: 12795 | G8: 4707 | H8: 8
A9: 13 | B9: 11900 | C9: 12244 | G9: 4158 | H9: 9
A10: 14 | B10: 11569 | C10: 11669 | G10: 5738 | H10: 10
A11: 15 | B11: 11352 | C11: 11549 | G11: 5525 | H11: 11
A12: 16 | B12: 11094 | C12: 11250 | G12: 5072 | H12: 12
G13: 4892 | H13: 13
G14: 4731 | H14: 14
G15: 4596 | H15: 15
G16: 4474 | H16: 16
